{"text_format":"3","workbook":"xlsx","n_sheets":1,"sheets":["Лист1"],"not_rendered":{"images":9},"read":"whole","date_system":"1900"}

{"sheet":"Лист1","index":0,"n_rows":20,"n_cols":10,"rows_kept":20}
[{"$nulls":3},"КП для для вспомогательным подразделениям по стульям и офис мебели от ООО \"БЕЛТЕМА\" (Екатеринбург) "]
[]
[{"$nulls":3},"Поставка с доставкой до адреса:  ХМАО, Ханты-Мансийск город, Гагарина улица, дом 4","Шаблон заказа мебели ДСП и стульев (не пром.)"]
[{"$nulls":3},"Исполнитель: Филиппов Сергей Сергеевич www.beltema.ru 117@beltema.ru +73432362222 +79024001900 "]
[]
[]
[null,"№","Запрос","Позиция","описание","Визуал","штук","Срок  с оплаты аванса","Цена+дост","Цена ВСЕГО"]
[null,1,"Кресло VIP","Кресло Monza PVN11 Эко кожа OG16","Крестовина: Пластик \nПодлокотники: Пластик с мягкой обивкой\nМеханизм: Топ ган\nОбивка: Эко кожа                  Высота кресла: 1135-1225 мм    Ширина сиденья: 500 мм       Глубина сиденья: 510  мм",null,5,"30-45 к дней",{"v":38000,"d":"38,000 ₽"},{"$f":"I8*G8","v":{"v":190000,"d":"190,000 ₽"}}]
[null,{"$f":"B8+1","v":2},"Кресло руководителя","Кресло FLY HB GTP HR OH/5 C11","Крестовина:Пластик \nПодлокотники: Пластик \nМеханизм: Топ ган\nОбивка: Ткань/Сетка \nЦвет: черный                   Высота кресла: 1100-1280 мм    Ширина сиденья: 500 мм       Глубина сиденья: 440 мм",null,30,"30-45 к дней",{"$f":"18728","v":{"v":18728,"d":"18,728 ₽"}},{"$f":"I9*G9","v":{"v":561840,"d":"561,840 ₽"}}]
[null,{"$f":"B9+1","v":3},"Кресло персонала","Кресло WEBSTAR GTP BLACK (J) PL62 RU OH/5 C11","Крестовина:Пластик \nПодлокотники: Пластик \nМеханизм:Пиастра \nОбивка: Ткань/Сетка \nЦвет: черный                   Высота кресла: 970-1080 мм    Ширина сиденья: 500 мм       Глубина сиденья: 425 мм",null,32,"10-45 к дней",{"v":12900,"d":"12,900 ₽"},{"$f":"I10*G10","v":{"v":412800,"d":"412,800 ₽"}}]
[null,4,"Офисное кресло для персонала","Кресло WEBSTAR GTP BLACK (J) PL62 RU OH/5 C11","Крестовина:Пластик \nПодлокотники: Пластик \nМеханизм:Пиастра \nОбивка: Ткань/Сетка \nЦвет: черный                   Высота кресла: 970-1080 мм    Ширина сиденья: 500 мм       Глубина сиденья: 425 мм",null,4,"30 к дней",{"v":12900,"d":"12,900 ₽"},{"$f":"I11*G11","v":{"v":51600,"d":"51,600 ₽"}}]
[null,5,"Стол письменный эргономичный левый","MQL-160. Стол письменный левый /угловой, упр.ДСП каркас, низк. пер. панель","1600х900х760 мм                   Используется ламинированная ДСП толщиной 22 мм. Торцы плиты облицованы прочной противоударной кромкой ABS толщиной 2 мм производства Германии. Цвет кромки соответствует цвету ДСП.",null,20,"30-45 к дней",{"v":16990,"d":"16,990 ₽"},{"v":339800,"d":"339,800 ₽"}]
[null,6,"Стол письменный эргономичный правый","MQR-160, Стол письменный правый /угловой, упр.ДСП каркас, низк. пер. панель)","1600х900х760 мм                   Используется ламинированная ДСП толщиной 22 мм. Торцы плиты облицованы прочной противоударной кромкой ABS толщиной 2 мм производства Германии. Цвет кромки соответствует цвету ДСП.",null,20,"30-45 к дней",{"v":16990,"d":"16,990 ₽"},{"v":339800,"d":"339,800 ₽"}]
[null,7,"Стеллаж для документов","MM5-022.Шкаф 2 дв.","810х350х1900 мм         Используется ламинированная ДСП толщиной 22 мм. Торцы плиты облицованы прочной противоударной кромкой ABS толщиной 2 мм производства Германии. Цвет кромки соответствует цвету ДСП.",null,6,"30-45 к дней",{"v":19200,"d":"19,200 ₽"},{"v":115200,"d":"115,200 ₽"}]
[null,8,"Тумба приставная","MJL.Тумба приставная левая","484х550х750 мм    Используется ламинированная ДСП толщиной 22 мм. Торцы плиты облицованы прочной противоударной кромкой ABS толщиной 2 мм производства Германии. Цвет кромки соответствует цвету ДСП.",null,32,"30-45 к дней",{"v":9900,"d":"9,900 ₽"},{"v":316800,"d":"316,800 ₽"}]
[null,9,"Тумба приставная","MKL.Тумба приставная левая","883х550х750 мм    Используется ламинированная ДСП толщиной 22 мм. Торцы плиты облицованы прочной противоударной кромкой ABS толщиной 2 мм производства Германии. Цвет кромки соответствует цвету ДСП.",null,20,"30-45 к дней",{"v":17900,"d":"17,900 ₽"},{"v":358000,"d":"358,000 ₽"}]
[null,10,"Стеллаж для документов",null,"Стеллаж СМ-54 2000х1000х500 5 полок",null,10,"10-45 к дней",{"v":19990,"d":"19,990 ₽"},{"v":199900,"d":"199,900 ₽"}]
[null,11]
[null,"ИТОГО",{"$nulls":7},{"$f":"SUM(J10:J18)","v":{"v":2133900,"d":"2,133,900 ₽"}}]
[{"$nulls":9},"с НДС 20%"]